[Event "Live Chess"]
[Site "Chess.com"]
[Date "2023.05.20"]
[Round "-"]
[White "LL220284LL"]
[Black "JoeyCage"]
[Result "1-0"]
[WhiteElo "2401"]
[BlackElo "2309"]
[TimeControl "300"]
[EndTime "12:17:08 PDT"]
[Termination "LL220284LL won by checkmate"]

1. e4 {[%clk 0:04:58.6]} 1... c5 {[%clk 0:04:58.5]} 2. c3 {[%clk 0:04:57.1]}
2... Nc6 {[%clk 0:04:55.8]} 3. d4 {[%clk 0:04:56.4]} 3... cxd4 {[%clk
0:04:54.1]} 4. cxd4 {[%clk 0:04:56.3]} 4... d5 {[%clk 0:04:52.2]} 5. exd5 {[%clk
0:04:48.7]} 5... Qxd5 {[%clk 0:04:50.6]} 6. Nf3 {[%clk 0:04:48.3]} 6... Bg4
{[%clk 0:04:49.2]} 7. Nc3 {[%clk 0:04:46.9]} 7... Qa5 {[%clk 0:04:48.1]} 8. h3
{[%clk 0:04:33.9]} 8... Bxf3 {[%clk 0:04:46.2]} 9. Qxf3 {[%clk 0:04:33.8]} 9...
e6 {[%clk 0:04:41.3]} 10. Bb5 {[%clk 0:04:29.2]} 10... Rc8 {[%clk 0:04:39]} 11.
O-O {[%clk 0:04:25]} 11... Ne7 {[%clk 0:04:33.4]} 12. Bd2 {[%clk 0:04:08.9]}
12... Qc7 {[%clk 0:04:30.9]} 13. Rac1 {[%clk 0:04:06.1]} 13... a6 {[%clk
0:04:29]} 14. Ba4 {[%clk 0:04:02.1]} 14... b5 {[%clk 0:04:26.4]} 15. Bf4 {[%clk
0:03:26.9]} 15... Qb7 {[%clk 0:04:20.7]} 16. d5 {[%clk 0:03:19.7]} 16... bxa4
{[%clk 0:04:16.7]} 17. dxc6 {[%clk 0:03:18.4]} 17... Qxc6 {[%clk 0:04:15.9]} 18.
Ne4 {[%clk 0:03:11]} 18... Qd7 {[%clk 0:04:10.5]} 19. Nd6+ {[%clk 0:03:07.9]}
19... Kd8 {[%clk 0:04:09.6]} 20. Nxf7+ {[%clk 0:03:06.6]} 20... Ke8 {[%clk
0:04:08]} 21. Nd6+ {[%clk 0:03:05.1]} 21... Kd8 {[%clk 0:04:07.2]} 22. Nxc8
{[%clk 0:02:56.2]} 22... Nxc8 {[%clk 0:04:06.1]} 23. Rfd1 {[%clk 0:02:55.8]}
23... Bd6 {[%clk 0:04:04.5]} 24. Bxd6 {[%clk 0:02:54]} 24... Nxd6 {[%clk
0:04:03.4]} 25. Qa8+ {[%clk 0:02:53.6]} 25... Ke7 {[%clk 0:02:01.1]} 26. Qxh8
{[%clk 0:02:41.5]} 26... Kf7 {[%clk 0:01:59.6]} 27. Qb8 {[%clk 0:02:39.1]} 27...
Kg6 {[%clk 0:00:54.8]} 28. Rxd6 {[%clk 0:02:37.3]} 28... Qf7 {[%clk 0:00:52.4]}
29. Re1 {[%clk 0:02:35.4]} 29... h6 {[%clk 0:00:46.9]} 30. Rdxe6+ {[%clk
0:02:33.1]} 30... Kh7 {[%clk 0:00:45.2]} 31. Re8 {[%clk 0:02:32.1]} 31... Qf5
{[%clk 0:00:39.4]} 32. Rh8+ {[%clk 0:02:31.1]} 32... Kg6 {[%clk 0:00:36.2]} 33.
Qd6+ {[%clk 0:02:30.3]} 33... Qf6 {[%clk 0:00:27.3]} 34. Re6 {[%clk 0:02:29.8]}
34... Kf7 {[%clk 0:00:23]} 35. Rxf6+ {[%clk 0:02:28.6]} 35... gxf6 {[%clk
0:00:21.5]} 36. Rf8+ {[%clk 0:02:28.5]} 36... Kg7 {[%clk 0:00:14.6]} 37. Qxf6+
{[%clk 0:02:28.4]} 37... Kh7 {[%clk 0:00:00.5]} 38. Rh8# {[%clk 0:02:28.3]} 1-0

[Event "Live Chess"]
[Site "Chess.com"]
[Date "2023.05.20"]
[Round "-"]
[White "booktrunk"]
[Black "ViktorTheCoolBoy"]
[Result "0-1"]
[WhiteElo "1320"]
[BlackElo "2527"]
[TimeControl "300"]
[EndTime "12:17:08 PDT"]
[Termination "ViktorTheCoolBoy won by checkmate"]

1. d4 {[%clk 0:04:59.6]} 1... Nf6 {[%clk 0:04:55.3]} 2. Bf4 {[%clk 0:04:57.5]}
2... g6 {[%clk 0:04:53.5]} 3. c3 {[%clk 0:04:56.7]} 3... Bg7 {[%clk 0:04:52.7]}
4. Na3 {[%clk 0:04:55.3]} 4... O-O {[%clk 0:04:52.2]} 5. Nc2 {[%clk 0:04:54.4]}
5... d6 {[%clk 0:04:41]} 6. h3 {[%clk 0:04:53.4]} 6... Nbd7 {[%clk 0:04:29.9]}
7. e3 {[%clk 0:04:52.4]} 7... e5 {[%clk 0:04:25.6]} 8. dxe5 {[%clk 0:04:51.3]}
8... dxe5 {[%clk 0:04:24.5]} 9. Bh2 {[%clk 0:04:49.7]} 9... Qe7 {[%clk
0:04:23.1]} 10. Bd3 {[%clk 0:04:46.6]} 10... Nc5 {[%clk 0:04:16.5]} 11. Bc4
{[%clk 0:04:45.6]} 11... Rd8 {[%clk 0:04:14]} 12. Qe2 {[%clk 0:04:43.9]} 12...
a5 {[%clk 0:04:11.7]} 13. Rd1 {[%clk 0:04:42.3]} 13... Be6 {[%clk 0:04:09.8]}
14. Rxd8+ {[%clk 0:04:40.7]} 14... Rxd8 {[%clk 0:04:08]} 15. Bxe6 {[%clk
0:04:39.7]} 15... Qxe6 {[%clk 0:04:07.9]} 16. b3 {[%clk 0:04:36]} 16... Nfe4
{[%clk 0:04:03.4]} 17. c4 {[%clk 0:04:32]} 17... Nc3 {[%clk 0:03:59.8]} 18. Qf3
{[%clk 0:04:25.2]} 18... e4 {[%clk 0:03:57.9]} 19. Qg4 {[%clk 0:04:23.1]} 19...
Qxg4 {[%clk 0:03:56.4]} 20. hxg4 {[%clk 0:04:21.6]} 20... Rd1# {[%clk
0:03:55.9]} 0-1

[Event "Live Chess"]
[Site "Chess.com"]
[Date "2023.05.20"]
[Round "-"]
[White "Bob2pen"]
[Black "ACx04"]
[Result "1-0"]
[WhiteElo "1791"]
[BlackElo "429"]
[TimeControl "300"]
[EndTime "12:17:16 PDT"]
[Termination "Bob2pen won by checkmate"]

1. e4 {[%clk 0:04:56.6]} 1... e5 {[%clk 0:04:58.2]} 2. Nf3 {[%clk 0:04:55.7]}
2... Nc6 {[%clk 0:04:56.7]} 3. Bb5 {[%clk 0:04:54.3]} 3... h6 {[%clk 0:04:54.9]}
4. c3 {[%clk 0:04:51.9]} 4... a6 {[%clk 0:04:53.7]} 5. Ba4 {[%clk 0:04:50.6]}
5... b5 {[%clk 0:04:52.4]} 6. Bb3 {[%clk 0:04:49.3]} 6... Bb7 {[%clk 0:04:51.1]}
7. O-O {[%clk 0:04:47.6]} 7... Bc5 {[%clk 0:04:48.2]} 8. d4 {[%clk 0:04:45.4]}
8... exd4 {[%clk 0:04:46.9]} 9. cxd4 {[%clk 0:04:44.5]} 9... Bb6 {[%clk
0:04:45.9]} 10. Nc3 {[%clk 0:04:39.4]} 10... d6 {[%clk 0:04:41.2]} 11. Nd5
{[%clk 0:04:35.3]} 11... Nf6 {[%clk 0:04:37.6]} 12. Nxb6 {[%clk 0:04:33]} 12...
cxb6 {[%clk 0:04:35.8]} 13. Re1 {[%clk 0:04:28.4]} 13... O-O {[%clk 0:04:32.2]}
14. Bf4 {[%clk 0:04:25.4]} 14... Re8 {[%clk 0:04:29.7]} 15. e5 {[%clk
0:04:18.8]} 15... dxe5 {[%clk 0:04:28.5]} 16. dxe5 {[%clk 0:04:16.8]} 16... Nxe5
{[%clk 0:04:27.3]} 17. Nxe5 {[%clk 0:04:08.5]} 17... Qxd1 {[%clk 0:04:16.5]} 18.
Raxd1 {[%clk 0:04:05.6]} 18... h5 {[%clk 0:04:07.3]} 19. Bxf7+ {[%clk
0:03:59.7]} 19... Kh7 {[%clk 0:04:00.4]} 20. Bg6+ {[%clk 0:03:55.2]} 20... Kg8
{[%clk 0:03:57.6]} 21. Bxe8 {[%clk 0:03:50.9]} 21... Rxe8 {[%clk 0:03:54.2]} 22.
Nf3 {[%clk 0:03:44.9]} 22... g6 {[%clk 0:03:42.7]} 23. Rxe8+ {[%clk 0:03:42.5]}
23... Nxe8 {[%clk 0:03:40.8]} 24. Rd8 {[%clk 0:03:40.7]} 24... Kf8 {[%clk
0:03:36.2]} 25. Ne5 {[%clk 0:03:29.2]} 25... Ke7 {[%clk 0:03:25.1]} 26. Bg5+
{[%clk 0:03:27.7]} 26... Ke6 {[%clk 0:03:23.4]} 27. Rxe8+ {[%clk 0:03:25.9]}
27... Kf5 {[%clk 0:03:20.9]} 28. Be3 {[%clk 0:03:20.7]} 28... g5 {[%clk
0:03:13.8]} 29. f3 {[%clk 0:03:14.5]} 29... g4 {[%clk 0:03:10.7]} 30. fxg4+
{[%clk 0:03:13]} 30... hxg4 {[%clk 0:03:09.7]} 31. g3 {[%clk 0:03:07.5]} 31...
a5 {[%clk 0:03:04.2]} 32. Bf4 {[%clk 0:03:03.7]} 32... Ke4 {[%clk 0:03:01.6]}
33. Nxg4+ {[%clk 0:02:59.6]} 33... Kf3 {[%clk 0:02:59.9]} 34. h3 {[%clk
0:02:51.5]} 34... Bc6 {[%clk 0:02:52]} 35. Re3# {[%clk 0:02:49.9]} 1-0

[Event "Live Chess"]
[Site "Chess.com"]
[Date "2023.05.20"]
[Round "-"]
[White "LiamBellwood"]
[Black "EdenHazard8"]
[Result "0-1"]
[WhiteElo "2056"]
[BlackElo "2097"]
[TimeControl "300"]
[EndTime "12:17:20 PDT"]
[Termination "EdenHazard8 won on time"]

1. d4 {[%clk 0:04:57.9]} 1... e6 {[%clk 0:04:58.9]} 2. Nc3 {[%clk 0:04:57.3]}
2... f5 {[%clk 0:04:58.3]} 3. Bf4 {[%clk 0:04:56.9]} 3... Nf6 {[%clk 0:04:57.6]}
4. e3 {[%clk 0:04:50.5]} 4... Be7 {[%clk 0:04:56.2]} 5. Bd3 {[%clk 0:04:47.2]}
5... O-O {[%clk 0:04:54.2]} 6. Nf3 {[%clk 0:04:46.9]} 6... b6 {[%clk 0:04:52.5]}
7. Ne5 {[%clk 0:04:45.9]} 7... Bb7 {[%clk 0:04:51]} 8. g4 {[%clk 0:04:43.9]}
8... fxg4 {[%clk 0:04:47.1]} 9. Nxg4 {[%clk 0:04:42.2]} 9... c5 {[%clk 0:04:43]}
10. Rg1 {[%clk 0:04:32]} 10... Nc6 {[%clk 0:04:26.7]} 11. Nxf6+ {[%clk
0:04:15.1]} 11... Rxf6 {[%clk 0:04:22.1]} 12. Qh5 {[%clk 0:04:05.5]} 12... g6
{[%clk 0:04:15.8]} 13. Bh6 {[%clk 0:02:41.4]} 13... Qe8 {[%clk 0:04:00.2]} 14.
Ne4 {[%clk 0:02:28.8]} 14... Rf5 {[%clk 0:03:54.2]} 15. Qh3 {[%clk 0:02:21.6]}
15... Nb4 {[%clk 0:03:13.5]} 16. Ng5 {[%clk 0:01:56.3]} 16... Nxd3+ {[%clk
0:03:03]} 17. cxd3 {[%clk 0:01:56.2]} 17... Bxg5 {[%clk 0:02:57.7]} 18. Bxg5
{[%clk 0:01:39.9]} 18... Qf7 {[%clk 0:02:55.9]} 19. Bf4 {[%clk 0:01:29.4]} 19...
cxd4 {[%clk 0:02:52.2]} 20. Rc1 {[%clk 0:01:03.5]} 20... dxe3 {[%clk 0:02:44.7]}
21. Bxe3 {[%clk 0:00:56.4]} 21... Ba6 {[%clk 0:02:40.3]} 22. Rc7 {[%clk
0:00:45.8]} 22... Bxd3 {[%clk 0:02:30]} 23. Bd4 {[%clk 0:00:44.9]} 23... Rf3
{[%clk 0:02:20.5]} 24. Qh6 {[%clk 0:00:25.1]} 24... Rf8 {[%clk 0:02:07.7]} 25.
h4 {[%clk 0:00:17.3]} 25... Rxf2 {[%clk 0:02:02.9]} 26. h5 {[%clk 0:00:12.3]}
26... Re2+ {[%clk 0:01:58.6]} 27. Kd1 {[%clk 0:00:09.3]} 27... Qf1+ {[%clk
0:01:58.2]} 0-1

[Event "Live Chess"]
[Site "Chess.com"]
[Date "2023.05.20"]
[Round "-"]
[White "mightysmasher"]
[Black "DerbyKnight"]
[Result "1-0"]
[WhiteElo "2104"]
[BlackElo "1632"]
[TimeControl "300"]
[EndTime "12:17:21 PDT"]
[Termination "mightysmasher won on time"]

1. e4 {[%clk 0:04:58.8]} 1... c6 {[%clk 0:04:56.7]} 2. d4 {[%clk 0:04:57.5]}
2... d5 {[%clk 0:04:56.6]} 3. Nd2 {[%clk 0:04:56.2]} 3... dxe4 {[%clk
0:04:55.1]} 4. Nxe4 {[%clk 0:04:55.3]} 4... Nf6 {[%clk 0:04:54.7]} 5. Nxf6+
{[%clk 0:04:52.5]} 5... exf6 {[%clk 0:04:54.6]} 6. c3 {[%clk 0:04:44.2]} 6...
Bd6 {[%clk 0:04:52.3]} 7. Bd3 {[%clk 0:04:43.7]} 7... O-O {[%clk 0:04:48.2]} 8.
Ne2 {[%clk 0:04:42.9]} 8... Re8 {[%clk 0:04:37.8]} 9. O-O {[%clk 0:04:41.5]}
9... Nd7 {[%clk 0:04:35.3]} 10. Ng3 {[%clk 0:04:40.4]} 10... Nf8 {[%clk
0:04:26.9]} 11. Be3 {[%clk 0:04:39.7]} 11... Be6 {[%clk 0:04:24.6]} 12. Nh5
{[%clk 0:04:37.9]} 12... g6 {[%clk 0:03:33.3]} 13. Nf4 {[%clk 0:04:31.3]} 13...
Qc7 {[%clk 0:03:26.8]} 14. Qd2 {[%clk 0:04:27.3]} 14... Rad8 {[%clk 0:03:04.6]}
15. Rfe1 {[%clk 0:04:24.3]} 15... Bd5 {[%clk 0:02:47.2]} 16. Nxd5 {[%clk
0:04:17.9]} 16... Bxh2+ {[%clk 0:02:43.2]} 17. Kh1 {[%clk 0:04:15.9]} 17... Rxd5
{[%clk 0:02:40.1]} 18. Be2 {[%clk 0:04:13.3]} 18... Ne6 {[%clk 0:01:53.8]} 19.
Bf3 {[%clk 0:04:11.2]} 19... Rdd8 {[%clk 0:01:43.5]} 20. Bh6 {[%clk 0:04:06.1]}
20... Bf4 {[%clk 0:01:36.3]} 21. Bxf4 {[%clk 0:04:03.6]} 21... Nxf4 {[%clk
0:01:26.1]} 22. g3 {[%clk 0:04:01.7]} 22... Ne6 {[%clk 0:01:09.2]} 23. Bg2
{[%clk 0:04:00.4]} 23... Ng5 {[%clk 0:01:03.3]} 24. Rad1 {[%clk 0:03:57.7]}
24... Rxe1+ {[%clk 0:00:42.5]} 25. Rxe1 {[%clk 0:03:55.1]} 25... Qd6 {[%clk
0:00:34]} 26. Qe3 {[%clk 0:03:52.3]} 26... h5 {[%clk 0:00:26]} 27. Qe2 {[%clk
0:03:43.1]} 27... Kg7 {[%clk 0:00:23.4]} 28. Qe3 {[%clk 0:03:41.1]} 28... Qd7
{[%clk 0:00:18.2]} 29. Qe7 {[%clk 0:03:38.7]} 29... Ne6 {[%clk 0:00:04]} 30.
Qxd7 {[%clk 0:03:32.5]} 30... Rxd7 {[%clk 0:00:03.9]} 31. Bh3 {[%clk 0:03:31.7]}
31... Rc7 {[%clk 0:00:00.4]} 32. Bxe6 {[%clk 0:03:30]} 32... fxe6 {[%clk
0:00:00.3]} 33. Re5 {[%clk 0:03:27.1]} 1-0

[Event "Live Chess"]
[Site "Chess.com"]
[Date "2023.05.20"]
[Round "-"]
[White "thrithik"]
[Black "Doge_Dandolo"]
[Result "0-1"]
[WhiteElo "385"]
[BlackElo "2026"]
[TimeControl "300"]
[EndTime "12:17:22 PDT"]
[Termination "Doge_Dandolo won by checkmate"]

1. d3 {[%clk 0:04:57.5]} 1... b6 {[%clk 0:04:57.7]} 2. e3 {[%clk 0:04:57.1]}
2... Bb7 {[%clk 0:04:56.8]} 3. f3 {[%clk 0:04:55.1]} 3... g6 {[%clk 0:04:55.9]}
4. Nc3 {[%clk 0:04:51.2]} 4... Bg7 {[%clk 0:04:55.1]} 5. Ne4 {[%clk 0:04:50.6]}
5... d5 {[%clk 0:04:51.8]} 6. Ng5 {[%clk 0:04:46.7]} 6... e5 {[%clk 0:04:47.3]}
7. Bd2 {[%clk 0:04:46.3]} 7... Qxg5 {[%clk 0:04:45.5]} 8. Bc3 {[%clk 0:04:45]}
8... Qe7 {[%clk 0:04:42.3]} 9. a3 {[%clk 0:04:38.6]} 9... d4 {[%clk 0:04:40.8]}
10. Bb4 {[%clk 0:04:38]} 10... c5 {[%clk 0:04:39.2]} 11. exd4 {[%clk 0:04:34.1]}
11... exd4+ {[%clk 0:04:37.6]} 12. Be2 {[%clk 0:04:25.1]} 12... cxb4 {[%clk
0:04:34.4]} 13. axb4 {[%clk 0:04:22.7]} 13... Nf6 {[%clk 0:04:33.1]} 14. c3
{[%clk 0:04:19.9]} 14... O-O {[%clk 0:04:30.7]} 15. cxd4 {[%clk 0:04:16.5]}
15... Qxb4+ {[%clk 0:04:28.9]} 16. Kf1 {[%clk 0:04:12.9]} 16... Qxd4 {[%clk
0:04:26.5]} 17. b3 {[%clk 0:04:00.7]} 17... Nd5 {[%clk 0:04:21.9]} 18. Ra4
{[%clk 0:03:58.9]} 18... Ne3+ {[%clk 0:04:19.9]} 19. Kf2 {[%clk 0:03:51.8]}
19... Nxd1+ {[%clk 0:04:18.4]} 20. Ke1 {[%clk 0:03:46.6]} 20... Qe3 {[%clk
0:04:04.8]} 21. Nh3 {[%clk 0:03:40.5]} 21... Nc3 {[%clk 0:04:02.1]} 22. Re4
{[%clk 0:03:35.6]} 22... Bxe4 {[%clk 0:03:57.6]} 23. fxe4 {[%clk 0:03:32.3]}
23... Qxe2# {[%clk 0:03:55.7]} 0-1

[Event "Live Chess"]
[Site "Chess.com"]
[Date "2023.05.20"]
[Round "-"]
[White "mikkyb4"]
[Black "McSlash1"]
[Result "0-1"]
[WhiteElo "1010"]
[BlackElo "2066"]
[TimeControl "300"]
[EndTime "12:17:36 PDT"]
[Termination "McSlash1 won by resignation"]

1. e4 {[%clk 0:04:57.2]} 1... c5 {[%clk 0:04:59.6]} 2. a3 {[%clk 0:04:55.9]}
2... e6 {[%clk 0:04:58.7]} 3. b4 {[%clk 0:04:54.5]} 3... cxb4 {[%clk 0:04:58.6]}
4. axb4 {[%clk 0:04:53.6]} 4... Bxb4 {[%clk 0:04:58.5]} 5. c3 {[%clk 0:04:53.1]}
5... Be7 {[%clk 0:04:57.8]} 6. d4 {[%clk 0:04:51.5]} 6... d5 {[%clk 0:04:57.5]}
7. e5 {[%clk 0:04:46.1]} 7... Nc6 {[%clk 0:04:55.8]} 8. Nf3 {[%clk 0:04:38.2]}
8... Qc7 {[%clk 0:04:54.2]} 9. Na3 {[%clk 0:04:34.9]} 9... f6 {[%clk 0:04:41.6]}
10. Nb5 {[%clk 0:04:31]} 10... Qb8 {[%clk 0:04:38.9]} 11. Bf4 {[%clk 0:04:25]}
11... f5 {[%clk 0:04:36.7]} 12. Be2 {[%clk 0:04:16.3]} 12... a6 {[%clk
0:04:35.6]} 13. Nd6+ {[%clk 0:04:11.6]} 13... Bxd6 {[%clk 0:04:33.1]} 14. exd6
{[%clk 0:04:10.6]} 14... Bd7 {[%clk 0:04:32.7]} 15. O-O {[%clk 0:04:00.4]} 15...
Nf6 {[%clk 0:04:29.4]} 16. Ng5 {[%clk 0:03:57.9]} 16... O-O {[%clk 0:04:28.6]}
17. Qc1 {[%clk 0:03:40.9]} 17... h6 {[%clk 0:04:22.5]} 18. Nxe6 {[%clk
0:03:36.1]} 18... Bxe6 {[%clk 0:04:19]} 19. d7 {[%clk 0:03:34.5]} 19... Qd8
{[%clk 0:04:18.4]} 20. Bd6 {[%clk 0:03:18.8]} 20... Rf7 {[%clk 0:04:17.3]} 21.
Bh5 {[%clk 0:03:10]} 21... Rxd7 {[%clk 0:04:13.6]} 22. Be5 {[%clk 0:03:08.4]}
22... Nxe5 {[%clk 0:04:11]} 23. dxe5 {[%clk 0:03:07.2]} 23... Ne4 {[%clk
0:04:10.9]} 24. Re1 {[%clk 0:02:42.7]} 24... Rc8 {[%clk 0:04:07.3]} 25. Ra3
{[%clk 0:02:39.7]} 25... d4 {[%clk 0:04:04.9]} 26. f3 {[%clk 0:02:34.1]} 26...
Nc5 {[%clk 0:04:00]} 27. cxd4 {[%clk 0:02:29.8]} 27... Rxd4 {[%clk 0:03:59.7]}
28. f4 {[%clk 0:02:22.2]} 28... Nd3 {[%clk 0:03:52.3]} 0-1

[Event "Live Chess"]
[Site "Chess.com"]
[Date "2023.05.20"]
[Round "-"]
[White "ElectricFalcon"]
[Black "Greenbecker"]
[Result "0-1"]
[WhiteElo "1064"]
[BlackElo "1627"]
[TimeControl "300"]
[EndTime "12:17:58 PDT"]
[Termination "Greenbecker won by resignation"]

1. d4 {[%clk 0:04:59]} 1... d5 {[%clk 0:04:58.6]} 2. c4 {[%clk 0:04:58.9]} 2...
e6 {[%clk 0:04:56.9]} 3. Nf3 {[%clk 0:04:57.4]} 3... Nf6 {[%clk 0:04:56.3]} 4.
Nc3 {[%clk 0:04:57.3]} 4... Bb4 {[%clk 0:04:55.2]} 5. Bg5 {[%clk 0:04:57]} 5...
Bxc3+ {[%clk 0:04:53.9]} 6. bxc3 {[%clk 0:04:56.4]} 6... O-O {[%clk 0:04:53.6]}
7. e3 {[%clk 0:04:55.4]} 7... c6 {[%clk 0:04:52.8]} 8. Bd3 {[%clk 0:04:52.1]}
8... Nbd7 {[%clk 0:04:52.1]} 9. e4 {[%clk 0:04:51.5]} 9... dxe4 {[%clk
0:04:50.1]} 10. Bxe4 {[%clk 0:04:50.4]} 10... Qa5 {[%clk 0:04:48.6]} 11. Bxf6
{[%clk 0:04:44.6]} 11... Qxc3+ {[%clk 0:04:45.5]} 12. Nd2 {[%clk 0:04:43.8]}
12... Nxf6 {[%clk 0:04:40]} 13. Bf3 {[%clk 0:04:37.2]} 13... Qxd4 {[%clk
0:04:37.8]} 14. O-O {[%clk 0:04:36]} 14... Rd8 {[%clk 0:04:36]} 15. Nb3 {[%clk
0:04:28.4]} 15... Qxd1 {[%clk 0:04:34.5]} 16. Raxd1 {[%clk 0:04:27.1]} 16...
Rxd1 {[%clk 0:04:33.5]} 17. Rxd1 {[%clk 0:04:26.8]} 17... Bd7 {[%clk 0:04:32.5]}
18. Nd4 {[%clk 0:04:20.6]} 18... h6 {[%clk 0:04:28.5]} 19. Ne2 {[%clk
0:04:19.6]} 19... g5 {[%clk 0:04:21.3]} 20. h3 {[%clk 0:04:15.7]} 20... Kg7
{[%clk 0:04:19.2]} 21. Nd4 {[%clk 0:04:12.9]} 21... Rd8 {[%clk 0:04:14.2]} 22.
Nb3 {[%clk 0:04:10.5]} 22... Kf8 {[%clk 0:04:10.9]} 23. Nc5 {[%clk 0:04:09]}
23... b6 {[%clk 0:04:06.4]} 24. Na6 {[%clk 0:04:05]} 24... Ke7 {[%clk
0:04:00.5]} 25. Nb4 {[%clk 0:04:00.7]} 25... Be8 {[%clk 0:03:59.1]} 26. Bxc6
{[%clk 0:03:56.8]} 26... Rxd1+ {[%clk 0:03:56.6]} 27. Kh2 {[%clk 0:03:55.1]}
27... Bxc6 {[%clk 0:03:55.5]} 28. Nxc6+ {[%clk 0:03:53.8]} 28... Kd6 {[%clk
0:03:55.2]} 29. Nxa7 {[%clk 0:03:53.1]} 29... Kc5 {[%clk 0:03:54.3]} 30. Nc8
{[%clk 0:03:48.6]} 30... Kxc4 {[%clk 0:03:52.1]} 31. Nxb6+ {[%clk 0:03:47.9]}
31... Kb5 {[%clk 0:03:50.8]} 32. Nc8 {[%clk 0:03:46.3]} 32... Ne4 {[%clk
0:03:49.3]} 33. a3 {[%clk 0:03:45.1]} 33... Nxf2 {[%clk 0:03:47.5]} 34. Ne7
{[%clk 0:03:43.3]} 34... Ne4 {[%clk 0:03:44.7]} 35. a4+ {[%clk 0:03:35.3]} 35...
Kxa4 {[%clk 0:03:43]} 36. h4 {[%clk 0:03:34.8]} 36... gxh4 {[%clk 0:03:41.8]}
37. Kh3 {[%clk 0:03:33.3]} 37... Rh1+ {[%clk 0:03:39]} 38. Kg4 {[%clk
0:03:32.6]} 38... f5+ {[%clk 0:03:38.2]} 39. Kf4 {[%clk 0:03:28.6]} 39... h3
{[%clk 0:03:36.2]} 40. gxh3 {[%clk 0:03:27.3]} 40... Rxh3 {[%clk 0:03:34.9]} 41.
Ng6 {[%clk 0:03:22.9]} 41... Rb3 {[%clk 0:03:29.1]} 42. Ke5 {[%clk 0:03:21.4]}
42... Nc5 {[%clk 0:03:25.9]} 43. Nf4 {[%clk 0:03:19]} 43... Rb4 {[%clk
0:03:22.8]} 44. Nxe6 {[%clk 0:03:17.7]} 44... Nxe6 {[%clk 0:03:22]} 45. Kxf5
{[%clk 0:03:16.2]} 45... Rb8 {[%clk 0:03:17.5]} 46. Kxe6 {[%clk 0:03:12.5]}
46... Rg8 {[%clk 0:03:16.4]} 47. Kf7 {[%clk 0:03:10.3]} 47... Rg1 {[%clk
0:03:15.4]} 48. Kf6 {[%clk 0:03:09.5]} 48... h5 {[%clk 0:03:14.9]} 49. Kf5
{[%clk 0:03:09.3]} 49... h4 {[%clk 0:03:14.4]} 50. Kf4 {[%clk 0:03:09.1]} 50...
h3 {[%clk 0:03:13.8]} 51. Kf3 {[%clk 0:03:09]} 51... h2 {[%clk 0:03:13.2]} 52.
Kf2 {[%clk 0:03:08.8]} 52... h1=Q {[%clk 0:03:12.4]} 53. Ke3 {[%clk 0:03:07.7]}
53... Qh3+ {[%clk 0:03:10.1]} 54. Ke4 {[%clk 0:03:07.6]} 54... Rg4+ {[%clk
0:03:09]} 55. Kd5 {[%clk 0:03:07.5]} 55... Qh5+ {[%clk 0:03:08.2]} 56. Ke6
{[%clk 0:03:07.4]} 56... Rg6+ {[%clk 0:03:07.4]} 57. Kd7 {[%clk 0:03:06.3]}
57... Qh7+ {[%clk 0:03:06.7]} 0-1

[Event "Live Chess"]
[Site "Chess.com"]
[Date "2023.05.20"]
[Round "-"]
[White "MarkLim1"]
[Black "Brooms1989"]
[Result "1-0"]
[WhiteElo "1687"]
[BlackElo "1016"]
[TimeControl "300"]
[EndTime "12:18:03 PDT"]
[Termination "MarkLim1 won by checkmate"]

1. d4 {[%clk 0:04:59.6]} 1... Nf6 {[%clk 0:04:53.2]} 2. Nf3 {[%clk 0:04:58.7]}
2... g6 {[%clk 0:04:51.2]} 3. c4 {[%clk 0:04:57.7]} 3... Bg7 {[%clk 0:04:49.8]}
4. Nc3 {[%clk 0:04:56.9]} 4... O-O {[%clk 0:04:47.7]} 5. e4 {[%clk 0:04:56.1]}
5... d6 {[%clk 0:04:46.7]} 6. Be2 {[%clk 0:04:55.4]} 6... Bg4 {[%clk 0:04:43.4]}
7. Be3 {[%clk 0:04:52.4]} 7... Nbd7 {[%clk 0:04:34.1]} 8. Ng1 {[%clk 0:04:50.5]}
8... Bxe2 {[%clk 0:04:20.7]} 9. Ngxe2 {[%clk 0:04:50.4]} 9... e5 {[%clk
0:04:17.6]} 10. d5 {[%clk 0:04:49]} 10... Nb6 {[%clk 0:04:12.3]} 11. Qd3 {[%clk
0:04:45.4]} 11... Ng4 {[%clk 0:04:01.4]} 12. Bd2 {[%clk 0:04:42.3]} 12... Qf6
{[%clk 0:03:55.5]} 13. f3 {[%clk 0:04:40.7]} 13... Nh6 {[%clk 0:03:34.9]} 14. g4
{[%clk 0:04:36.3]} 14... g5 {[%clk 0:03:25.3]} 15. O-O-O {[%clk 0:04:33.9]}
15... a5 {[%clk 0:03:12.8]} 16. h4 {[%clk 0:04:32.6]} 16... Qd8 {[%clk 0:03:05]}
17. hxg5 {[%clk 0:04:28.7]} 17... f6 {[%clk 0:03:01]} 18. gxh6 {[%clk
0:04:27.1]} 18... Bxh6 {[%clk 0:03:00.9]} 19. Ng3 {[%clk 0:04:24.2]} 19... Bxd2+
{[%clk 0:02:56]} 20. Rxd2 {[%clk 0:04:23.4]} 20... c6 {[%clk 0:02:51.6]} 21.
Rdh2 {[%clk 0:04:21.7]} 21... Rf7 {[%clk 0:02:48.5]} 22. Nf5 {[%clk 0:04:15.9]}
22... cxd5 {[%clk 0:02:31.8]} 23. cxd5 {[%clk 0:04:09.4]} 23... Rc8 {[%clk
0:02:26.3]} 24. Nh6+ {[%clk 0:04:07.1]} 24... Kf8 {[%clk 0:02:24.6]} 25. Nxf7
{[%clk 0:04:06]} 25... Kxf7 {[%clk 0:02:24.4]} 26. Rxh7+ {[%clk 0:04:04.6]}
26... Ke8 {[%clk 0:02:23.6]} 27. Rh8+ {[%clk 0:04:03.6]} 27... Kd7 {[%clk
0:02:22.9]} 28. Rxd8+ {[%clk 0:04:00.7]} 28... Rxd8 {[%clk 0:02:22.4]} 29. Rh7+
{[%clk 0:03:59.2]} 29... Kc8 {[%clk 0:02:21.2]} 30. Nb5 {[%clk 0:03:55.6]} 30...
Kb8 {[%clk 0:02:15.5]} 31. Qc3 {[%clk 0:03:50.7]} 31... Rc8 {[%clk 0:02:13.5]}
32. Rc7 {[%clk 0:03:49.6]} 32... a4 {[%clk 0:01:58.7]} 33. Rxc8+ {[%clk
0:03:48.1]} 33... Nxc8 {[%clk 0:01:57.4]} 34. Qc7+ {[%clk 0:03:45.6]} 34... Ka8
{[%clk 0:01:49.7]} 35. Qxc8# {[%clk 0:03:44]} 1-0

[Event "Live Chess"]
[Site "Chess.com"]
[Date "2023.05.20"]
[Round "-"]
[White "mattlirious"]
[Black "JoshMcK"]
[Result "0-1"]
[WhiteElo "1329"]
[BlackElo "1564"]
[TimeControl "300"]
[EndTime "12:18:41 PDT"]
[Termination "JoshMcK won by resignation"]

1. e4 {[%clk 0:04:57.6]} 1... c6 {[%clk 0:04:58]} 2. d4 {[%clk 0:04:56.7]} 2...
d5 {[%clk 0:04:57]} 3. e5 {[%clk 0:04:56.1]} 3... c5 {[%clk 0:04:55.1]} 4. Nf3
{[%clk 0:04:54.7]} 4... Nc6 {[%clk 0:04:52.1]} 5. Bb5 {[%clk 0:04:52.3]} 5...
cxd4 {[%clk 0:04:49.4]} 6. Nxd4 {[%clk 0:04:49.8]} 6... Bd7 {[%clk 0:04:48.7]}
7. Qf3 {[%clk 0:04:48.3]} 7... Nxd4 {[%clk 0:04:46.4]} 8. Bxd7+ {[%clk
0:04:46.1]} 8... Qxd7 {[%clk 0:04:45.1]} 9. Qd3 {[%clk 0:04:45]} 9... Nc6 {[%clk
0:04:39.8]} 10. O-O {[%clk 0:04:42.6]} 10... Nxe5 {[%clk 0:04:36.9]} 11. Qe3
{[%clk 0:04:39.6]} 11... Nc6 {[%clk 0:04:34.6]} 12. c3 {[%clk 0:04:37.7]} 12...
Nf6 {[%clk 0:04:32.8]} 13. Nd2 {[%clk 0:04:28.9]} 13... e6 {[%clk 0:04:29.6]}
14. Nb3 {[%clk 0:04:28.1]} 14... Be7 {[%clk 0:04:23.7]} 15. Re1 {[%clk
0:04:26.6]} 15... O-O {[%clk 0:04:22.5]} 0-1